Cogmind - Beta 10.2 --- EXPLORER MODE // 2021.04.10 @ 14:47:26 // Halloween2020/ForbiddenLore Player: FUMI Result: Self-destructed Performance ------------- Evolutions (1) 500 Regions Visited (2) 400 Robots Destroyed (15) 75 Value Destroyed (372) 372 Prototype IDs (0) 0 Alien Tech Used (0) 0 Bonus (202) 202 TOTAL SCORE: 1549 Bonus ------- Pacifist 200 High Alert Combat Kills 2 Cogmind --------- Core Integrity 314/400 Matter 300/300 Energy 250/250 System Corruption 0% Temperature Cool (0) Movement Walking (120) Location -9/Materials Parts ------- > --- POWER (1) -------- Ion Engine > --- PROPULSION (4) --- Aluminum Leg Aluminum Leg Aluminum Leg Improved Aluminum Leg > --- UTILITY (2) ------ Light Armor Plating Light Armor Plating > --- WEAPON (3) ------- Small Laser Beam Rifle Light Assault Rifle > --- INVENTORY (4) ---- Light Ion Engine Heat Sink Assault Rifle Peak State ------------ > --- POWER ------------ Improved Ion Engine > --- PROPULSION ------- Aluminum Leg Aluminum Leg Aluminum Leg Improved Aluminum Leg > --- UTILITY ---------- Light Armor Plating Light Armor Plating > --- WEAPON ----------- Medium Laser Small Laser Heavy Assault Rifle > --- INVENTORY -------- Light Ion Engine Assault Rifle Light Assault Rifle [Rating: 13] Favorites ----------- Power Improved Ion Engine Engine Improved Ion Engine Propulsion Aluminum Leg Leg Aluminum Leg Utility Light Armor Plating Protection Light Armor Plating Weapon Medium Laser Energy Gun Medium Laser Ballistic Gun Heavy Assault Rifle Build | -11 -10 -9 ------- Run | Scr Mat Mat Slots Evolved 3 | . 1 2 Power . | . . . Propulsion 2 | . 1 1 Utility . | . . . Weapon 1 | . . 1 Parts Attached 18 | 7 1 10 Power 3 | 1 . 2 Engine 3 | 1 . 2 Core . | . . . Reactor . | . . . Propulsion 7 | 2 1 4 Treads . | . . . Leg 7 | 2 1 4 Wheel . | . . . Hover . | . . . Flight . | . . . Utility 2 | 2 . . Device . | . . . Storage . | . . . Processor . | . . . Hackware . | . . . Protection 2 | 2 . . Artifact . | . . . Weapon 6 | 2 . 4 Energy Gun 3 | 1 . 2 Energy Cannon . | . . . Ballistic Gun 3 | 1 . 2 Ballistic Cannon . | . . . Launcher . | . . . Special Weapon . | . . . Impact Weapon . | . . . Slashing Weapon . | . . . Piercing Weapon . | . . . Special Melee Weapon . | . . . Unidentified Prototypes . | . . . Parts Lost . | . . . Power . | . . . Propulsion . | . . . Utility . | . . . Weapon . | . . . Highest Loss Streak . | . . . Average Slot Usage (%) 97 | . 98 97 Engine 9 | . 12 9 Leg 38 | . 35 39 Protection 21 | . 25 20 Energy Gun 17 | . 12 18 Ballistic Gun 10 | . 12 10 Naked Turns . | . . . Heaviest Build 19 | 13 13 19 Greatest Support 43 | 20 30 43 Greatest Overweight (x) . | . . . Average Overweight (x) . | . . . Largest Inventory Capacity 4 | 4 4 4 Average Capacity 4 | 4 4 4 Most Carried 4 | 2 4 4 Average Carried 3 | 1 3 3 Final Capacity 4 | 4 4 4 Final Carried 4 | 2 4 3 Class Distribution -------------------- 57% | Hacker-Tank 31% | Hacker-Mutant 11% | Scavenger-Tank Dominant Class ---------------- Hacker-Mutant | -10/Materials Hacker-Tank | -9/Materials Resources | -11 -10 -9 ----------- Run | Scr Mat Mat Matter Collected 573 | 219 61 293 Remotely . | . . . Salvage Created 445 | . . 445 Parts 25 | . . 25 Haulers Intercepted . | . . . Recyclers Shooed 1 | . . 1 Parts Field Recycled . | . . . Retrieved Matter . | . . . Parts Self-Destructed . | . . . Prevented . | . . . Kills | -11 -10 -9 ------- Run | Scr Mat Mat Combat Hostiles Destroyed 14 | . . 14 Guns 14 | . . 14 Classes Destroyed 4 | . . 4 Watcher 1 | . . 1 Swarmer 6 | . . 6 Grunt 7 | . . 7 Sentry 1 | . . 1 Best Kill Streak 5 | . . 5 Combat Bots Only 5 | . . 5 Max Kills in Single Turn 1 | . . 1 Gunslinging . | . . . Exploded . | . . . Melee . | . . . Uniques/NPCs Destroyed . | . . . Combat | -11 -10 -9 -------- Run | Scr Mat Mat Damage Taken 336 | . 1 335 Core 86 | . . 86 Absorbed by Shields . | . . . Core Remaining (%) 100 | 100 100 . Volleys Fired 34 | . . 34 Largest 3 | . . 3 Hottest 113 | . . 113 Shots Fired 101 | . . 101 Gun 101 | . . 101 Cannon . | . . . Launcher . | . . . Special . | . . . Kinetic 34 | . . 34 Thermal 67 | . . 67 Explosive . | . . . Electromagnetic . | . . . Robot Hit Streak 18 | . . 18 Robot Miss Streak 2 | . . 2 Penetration Max . | . . . Secondary Targets 2 | . . 2 Max Gunslinging Chain 1 | . . 1 Shots Hit Robots 75 | . . 75 Core Hits 26 | . 1 25 Critical Hits . | . . . Critical Kills . | . . . Critical Parts Destroyed . | . . . Melee Attacks . | . . . Impact . | . . . Slashing . | . . . Piercing . | . . . Sneak Attacks . | . . . Combat Hostiles . | . . . Follow-up Attacks . | . . . Damage Inflicted 808 | . 3 805 Guns 800 | . . 800 Cannons . | . . . Explosions . | . . . Melee . | . . . Ramming 8 | . 3 5 Kinetic 251 | . . 251 Thermal 549 | . . 549 Explosive . | . . . Electromagnetic . | . . . Impact . | . . . Slashing . | . . . Piercing . | . . . Highest Corruption . | . . . Average Corruption . | . . . Corruption Purged . | . . . Overload Shots . | . . . Overflow Damage . | . . . Projectiles . | . . . Explosions . | . . . Melee . | . . . Knockbacks . | . . . Impact . | . . . Kinetic . | . . . Secondary . | . . . Self-Inflicted Damage 2 | . 1 1 Shots . | . . . Rammed 2 | . 1 1 Targets Rammed 3 | . 1 2 Kicked 1 | . . 1 Crushed . | . . . Highest Temperature 575 | . . 575 Average Temperature 211 | . . 211 Received Heat Transfer 147 | . . 147 Effects 22 | . . 22 Shutdowns 6 | . . 6 Energy Bleed 1 | . . 1 Interference 2 | . . 2 Matter Decay 2 | . . 2 Short Circuit 2 | . . 2 Damage (minor) 1 | . . 1 Damage (major) 7 | . . 7 Damage (core) 1 | . . 1 Siege Activations . | . . . Robots Corrupted . | . . . Combat Hostiles . | . . . Parts Fried . | . . . Impact Corruptions . | . . . Robots Melted . | . . . Combat Hostiles . | . . . Parts Melted 4 | . . 4 Heat Transferred 1475 | . . 1475 Parts Sabotaged . | . . . Parts Stolen . | . . . Parts Stripped . | . . . Power Chain Reactions . | . . . Missiles Intercepted . | . . . Alert | -11 -10 -9 ------- Run | Scr Mat Mat Peak Influence 437 | . . 437 Initial . | . . . Average 112 | . . 152 Maximum Alert Level 2 | . . 2 Low Security (%) 77 | 100 100 69 Level 1 18 | . . 24 Level 2 4 | . . 6 Level 3 . | . . . Level 4 . | . . . Level 5 . | . . . High Security . | . . . Max Security . | . . . Squads Dispatched 4 | . . 4 Investigation 1 | . . 1 Extermination . | . . . Reinforcement 3 | . . 3 Assault . | . . . Garrison . | . . . Intercept . | . . . Construction Impeded . | . . . Haulers Reinforced . | . . . Stealth | -11 -10 -9 --------- Run | Scr Mat Mat Distress Signals 3 | . 2 1 Communications Jammed . | . . . Distress Signals . | . . . Times Spotted 35 | . 1 34 Peak Tracking Total 5 | . . 5 Tactical Retreats 7 | . . 7 Traps | -11 -10 -9 ------- Run | Scr Mat Mat Traps Triggered 1 | . . 1 Indirectly . | . . . Trap Hack Attempts . | . . . Triggered . | . . . Disarmed . | . . . Reprogrammed . | . . . Reused . | . . . Traps Extracted . | . . . Installed . | . . . Triggered . | . . . Machines | -11 -10 -9 ---------- Run | Scr Mat Mat Machines Disabled . | . . . Max in Single Turn . | . . . Machines Sabotaged . | . . . Garrisons Compromised . | . . . Overloaded Fab Kills . | . . . Fab Network Shutdowns . | . . . Hacking | -11 -10 -9 --------- Run | Scr Mat Mat Machines Accessed 7 | . 3 4 Terminals 5 | . 3 2 Fabricators . | . . . Repair Stations . | . . . Recycling Units 1 | . . 1 Scanalyzers 1 | . . 1 Garrison Access . | . . . Total Hacks 13 | . 3 10 Successful 11 | . 1 10 Failed 2 | . 2 . Catastrophic 1 | . 1 . Database Lockouts . | . . . Manual 2 | . . 2 Terminals 10 | . 3 7 Fabricators . | . . . Repair Stations . | . . . Recycling Units 1 | . . 1 Scanalyzers 2 | . . 2 Garrison Access . | . . . Terminal Hacks 8 | . 1 7 Record 3 | . . 3 Alert Level 3 | . . 3 Unreport Threat 1 | . . 1 Locate Traps 1 | . 1 . Fabricator Hacks . | . . . Repair Station Hacks . | . . . Recycling Unit Hacks 1 | . . 1 Process 1 | . . 1 Scanalyzer 2 | . . 2 Insert Component 1 | . . 1 Analyze 1 | . . 1 Garrison Access Hacks . | . . . Unauthorized Hacks . | . . . Terminals . | . . . Fabricators . | . . . Repair Stations . | . . . Recycling Units . | . . . Scanalyzers . | . . . Garrison Access . | . . . Data Cores Recovered . | . . . Used . | . . . Hacking Detections 3 | . 1 2 Full Trace Events 1 | . . 1 Feedback Events . | . . . Feedback Blocked . | . . . Robot Schematics Acquired . | . . . Robots Built . | . . . Matter . | . . . Time . | . . . Total Robot Build Rating . | . . . Part Schematics Acquired 1 | . . 1 Parts Built . | . . . Matter . | . . . Time . | . . . Total Part Build Rating . | . . . Parts Repaired . | . . . Time . | . . . Parts Recycled . | . . . Recycled Matter 97 | . . 97 Retrieved Matter . | . . . Retrieved Components . | . . . Parts Scanalyzed 1 | . . 1 Part Schematics Acquired 1 | . . 1 Parts Damaged . | . . . Bothacking | -11 -10 -9 ------------ Run | Scr Mat Mat Used RIF Installer . | . . . Robots Hacked . | . . . Non-combat . | . . . Combat . | . . . Robot Hacks Applied . | . . . Relay Couplers Released . | . . . Robots Rewired . | . . . Allies Hacked . | . . . Hacks Repelled . | . . . Allies | -11 -10 -9 -------- Run | Scr Mat Mat Total Allies . | . . . Largest Group . | . . . Highest-Rated Group . | . . . Highest-Rated Ally . | . . . Total Orders . | . . . Ally Attacks . | . . . Total Damage . | . . . Kills . | . . . Allies Corrupted . | . . . Allies Melted . | . . . Intel | -11 -10 -9 ------- Run | Scr Mat Mat Robot Analysis Total . | . . . Derelict Logs Recovered . | . . . Drone Launches . | . . . Drone Recoveries . | . . . Exploration | -11 -10 -9 ------------- Run | Scr Mat Mat Turns Passed 1100 | 74 216 810 Spaces Moved 767 | 53 177 537 Core 2 | 2 . . Treads . | . . . Legs 765 | 51 177 537 Wheels . | . . . Hover . | . . . Flight . | . . . Fastest Speed 50 | 50 120 120 Average Speed 119 | 117 120 120 Slowest Speed 120 | 120 120 120 Overloaded Moves . | . . . Propulsion Burnouts . | . . . Robots Hopped . | . . . Cave-ins Triggered . | . . . Exploration Rate (%) 26 | 4 35 41 Regions Visited 2 Branch Regions . Pre-discovered Areas . | . . . Known Exits Taken 2 | 1 1 . Unknown Exits Taken . | . . . Scrap Searched . | . . . Spaces Dug . | . . . Terrain Destroyed . | . . . Melee . | . . . Projectile . | . . . AOE . | . . . Terrain Rammed . | . . . Walls Destroyed . | . . . Machines Disabled . | . . . Actions | -11 -10 -9 --------- Run | Scr Mat Mat Total 868 | 62 180 626 Wait 33 | . . 33 Move 765 | 52 176 537 Hop . | . . . Pick Up 7 | 3 2 2 Fast Attach 13 | 6 1 6 Attach 3 | 1 . 2 Detach . | . . . Swap 2 | . . 2 Drop 8 | . . 8 Fire 34 | . . 34 Melee . | . . . Ram . | . . . Kick 3 | . 1 2 Crush . | . . . Escape Stasis . | . . . Rewire . | . . . Trap . | . . . Miscellaneous . | . . . Route ------- -11/Scrapyard -10/Materials (discovered 2 exits: *Mat / *Min) -9/Materials History --------- Turn | Location | Event 5 | -11/Scrapyard | Identified exit to Materials 5 | -11/Scrapyard | Discovered exit to Materials (range 16) 75 | -11/Scrapyard | Entered Materials 75 | -10/Materials | Evolved 1 slot: Propulsion x1 167 | -10/Materials | Identified exit to Mines 167 | -10/Materials | Discovered exit to Mines (range 9) 222 | -10/Materials | Met 8R-AWN 281 | -10/Materials | Identified exit to Materials 281 | -10/Materials | Discovered exit to Materials (range 9) 291 | -10/Materials | Entered another Materials area 291 | -9/Materials | Evolved 2 slots: Propulsion x1, Weapon x1 307 | -9/Materials | Build established: Hacker-Mutant 645 | -9/Materials | Build established: Hacker-Tank 1101 | -9/Materials | Self-destructed Last Messages --------------- 01005_ R-06 Scavenger collects Aluminum Leg. 01005_ Acquired 28 matter. 01006_ Dropped Hvy. Assault Rifle. 01006_ K-01 Serf collects debris. 01008_ Acquired 10 matter. 01008_ R-06 Scavenger collects Broken Med. Laser. 01018_ Connecting with Terminal... >>Alert(Check) Current Alert Level: 2-D >>Query(Recycling Unit) Deconstruction apparatus for breaking down old components delivered by Recycler class robots. Condensed matter is contained within the unit until it reaches a certain quota, at which point it is transferred to the nearest [DSF]. >>Alert(Purge) Purged threat record, alert level lowered. >>Alert(Check) Current Alert Level: 1-M 01018_ ALERT: Suspicious activity at Terminal M001. Dispatching Investigation squad. 01041_ K-01 Serf cleans the Atomic Centrifuge. Map ----- +----------------------------------------------------+ | ?????????????????????????????# #?????????????????? | | ?????????????????????????????# #?########???###### | | ?????????????????????????????# #?# #???# | | ??????????????????????######?# #?# #???# "" | | ??????????????????????# # #?# #???# ""S | | ??????????????????????# # #?# #???# "" | | ??????????????????????#] """ + #?# #???# ! | | ??????????????????????# """ # #?# #???# | | ??????????????????????# """ # ######+#########+## | | ??????????????????????# ?# | | ??????????????????????##########+####+####+####### | | ????????????????????????????# # # #????? | | ????????????????????????????# # # #????? | | ????????????????????????????#! # # #??### | | ????????????????????????????# # # #??# | | ????????????????????????????# ==# # #??# | | ????????????????????????????# [ =[# # #??#"S | | ????????????????????????????######%# # #??#"" | | ??????????????##########?????????### #####??# " | | ?????????#????# #???????????# #??????# | | ?????????# ???# #???????????######???###### | | ?????????# ??# ############?????????# | | ????????## # ## #?????????# """" | | ??????? # ##+####+### ! #?????????# """" | | ??????? # g g # #?????????# """" | | ????????+ gg /@ ! ! #?????????# = | | ????????# T # #?????????# """" | | ????????# # ! #?????????# """" | | ????????# # #?????????# """" | | ????????# """ """ # #?????????# | | ????????# """ """ ####+###########????###### | | ?######## """ """ #### ##### ########### | | = | | % T | | = = * %%%% | | ????## ##T####+#### ######+##### ########### | | ???????? ???# ! =*## ## ## ##?????????? | | ????????????# """ ## ## ## #??????????? | | ????????????# """ ## ## ## #??????????? | | ????????????# """ ## + ## #??????????? | | ????????????# ## ## ## #??????????? | | ????????????# !## ## ## #??????????? | | ????????????##+###### ## ## #??????????? | | ???????????### ###??# ## ## #??????????? | | ???????????# #### ############# #??????????? | | ???????????# #???????????# #??????????? | | ???? T #???????????# #??????????? | | ? ### #???????????# #??????????? | | ?? ????# ######???????????# ^ #??????????? | | ???#???????###+###????????????????# #??????????? | +----------------------------------------------------+ Best States ------------- Heat Dissipation 28 Energy Generation 12 Energy Capacity 265 Matter Stores 300 Matter Capacity 300 Sight Range 16 Terrain Scan Density 10 Armor Coverage 300 Resistance: KI 35 Resistance: TH 35 Resistance: EX 35 Resistance: EM 35 Resistance: I 35 Resistance: S 35 Resistance: P 35 Evasion (%) 40 Offensive Hacking 20 Item Schematics ----------------- Assault Rifle | -9/Materials | Scanalyzed Robot Schematics ------------------ None Fabricated ------------ Nothing Alien Tech Used ----------------- None Achievements -------------- None Challenges ------------ None Game ------ Seed BarrageSwordPurifier Manual? 0 Play Time 00:21:24 Cumulative 25.9 hours Start 2020.11.06 @ 17:19:38 End 2021.04.10 @ 14:47:26 Sessions 6 Manual Loads 0 Difficulty Explorer Special Mode Halloween2020/ForbiddenLore Game No. 23 Rogue 13 Adventurer 0 Explorer 10 Win Type - Total 0 Types 0/0/0/0/0/0/0/0/0 Lore% 9 Gallery% 23 Achievement% 24 Wizard Run 0 Options --------- ASCII 0 Keyboard 0 Movement Mouse Keybinds 0 Fullscreen 1 Font 12/Fuzzy Map View 83x54 Tactical HUD 1 Map Filters NONE Filters NONE Steam 1 RUN: d26696c2-5dde-4a66-b861-48189fd4fe9c